bitfinex-derivatives/quotes_BTCF0:USTF0_20241120
["timestamp","ask_amount","ask_price","bid_price","bid_amount"]
[1732061095560,0.26572422,92266.0,92265.0,0.052102]
[1732061096155,0.26772422,92266.0,92265.0,0.052102]
[1732061098346,0.26572422,92266.0,92265.0,0.052102]
[1732061098550,0.26772422,92266.0,92265.0,0.052102]
[1732061099655,0.26772422,92266.0,92259.0,0.054105]
[1732061099960,0.054105,92260.0,92259.0,0.054105]
[1732061100262,0.15514012,92260.0,92259.0,0.054105]
[1732061100649,0.26562012,92260.0,92259.0,0.054105]
[1732061101061,0.31972512,92260.0,92259.0,0.054105]
[1732061102358,0.62842012,92260.0,92248.0,0.0051]
[1732061102659,0.054112,92248.0,92247.0,0.345012]
[1732061102849,0.31973212,92248.0,92247.0,0.054112]
[1732061103158,0.35183212,92248.0,92247.0,0.054112]
[1732061103950,0.71263212,92248.0,92247.0,0.054112]
[1732061104856,0.054115,92243.0,92242.0,0.02165411]
[1732061105057,0.15900312,92243.0,92242.0,0.02165411]
[1732061105357,0.054118,92238.0,92237.0,0.054118]
[1732061105658,0.414918,92238.0,92237.0,0.054118]
[1732061105954,0.57005812,92238.0,92237.0,0.054118]
[1732061106563,0.51594012,92238.0,92237.0,0.054118]
[1732061106865,0.15514012,92238.0,92237.0,0.054118]
[1732061108555,0.15714012,92238.0,92237.0,0.054118]
[1732061108951,0.15714012,92238.0,92237.0,0.345018]
[1732061109168,0.15514012,92238.0,92237.0,0.345018]
[1732061109361,0.15714012,92238.0,92237.0,0.345018]
[1732061110278,0.51794012,92238.0,92226.0,0.2909]
[1732061110470,0.15514012,92228.0,92227.0,0.054124]
[1732061110769,0.26562012,92228.0,92227.0,0.054124]
[1732061111661,0.26762012,92228.0,92227.0,0.054124]
[1732061113370,0.26762012,92228.0,92217.0,0.00672645]
[1732061113371,0.26773448,92228.0,92217.0,0.00672645]
[1732061113571,0.11048,92227.0,92225.0,0.05420824]
[1732061114062,0.15514012,92226.0,92225.0,0.05420824]
[1732061115669,0.15714012,92226.0,92225.0,0.05420824]
[1732061120763,0.15514012,92226.0,92225.0,0.05420824]
[1732061120965,0.15714012,92226.0,92225.0,0.05420824]
[1732061122075,0.15714012,92226.0,92225.0,0.41500824]
[1732061122264,0.002,92226.0,92225.0,0.41500824]
[1732061122572,0.00011436,92228.0,92227.0,0.054124]
[1732061123777,0.1104,92239.0,92237.0,0.054118]
[1732061124083,0.1104,92239.0,92237.0,0.414918]
[1732061124381,0.15514012,92238.0,92237.0,0.414918]
[1732061124673,0.15522489,92238.0,92237.0,0.414918]
[1732061124871,0.15722489,92238.0,92237.0,0.414918]
[1732061125064,0.15722489,92238.0,92237.0,0.054118]
[1732061125870,0.26211301,92238.0,92237.0,0.054118]
[1732061126269,0.26011301,92238.0,92237.0,0.054118]
[1732061126471,0.26111301,92238.0,92237.0,0.054118]
[1732061126677,0.15622489,92238.0,92237.0,0.054118]
[1732061127060,0.15522489,92238.0,92237.0,0.054118]
[1732061127264,0.15622489,92238.0,92237.0,0.054118]
[1732061129376,8.477e-05,92238.0,92237.0,0.670258]
[1732061129581,0.0051,92248.0,92247.0,0.054112]
[1732061129795,0.0051,92258.0,92247.0,0.82650357]
[1732061129968,0.1104,92259.0,92257.0,0.054107]
[1732061130364,0.15514012,92258.0,92257.0,0.054107]
[1732061130685,0.0001344,92258.0,92257.0,0.345007]
[1732061130862,0.0001344,92258.0,92257.0,0.670167]
[1732061131286,0.00162645,92268.0,92257.0,0.68590086]
[1732061131470,0.005,92275.0,92267.0,0.51978912]
[1732061131783,0.0051,92280.0,92279.0,0.054094]
[1732061131986,0.15514012,92281.0,92279.0,0.414894]
[1732061132168,8.186e-05,92280.0,92279.0,0.414894]
[1732061132569,8.186e-05,92280.0,92279.0,0.413894]
[1732061133382,0.00108186,92280.0,92279.0,0.413894]
[1732061134165,0.00108186,92280.0,92279.0,0.053094]
[1732061137191,0.15622198,92280.0,92279.0,0.053094]
[1732061137485,0.15622198,92280.0,92275.0,0.2909]
[1732061137486,0.51702198,92280.0,92275.0,0.2909]
[1732061137668,0.15514012,92276.0,92275.0,0.2909]
[1732061138768,0.53895341,92276.0,92265.0,0.0051]
[1732061138970,0.15514012,92266.0,92263.0,0.054103]
[1732061139178,0.15514012,92264.0,92263.0,0.054103]
[1732061143992,0.054103,92263.0,92256.0,0.00162587]
[1732061144175,0.11036,92265.0,92256.0,0.00162587]
[1732061144176,0.15514012,92257.0,92256.0,0.00162587]
[1732061145185,0.20924712,92257.0,92256.0,0.00162587]
[1732061145383,0.31413524,92257.0,92256.0,0.00162587]
[1732061145577,0.15514012,92257.0,92256.0,0.00162587]
[1732061147587,0.18844012,92257.0,92256.0,0.00162587]
[1732061150086,0.15514012,92257.0,92256.0,0.00162587]
[1732061150393,0.054111,92250.0,92249.0,0.0051]
[1732061150587,0.054114,92245.0,92243.0,0.059215]
[1732061150783,0.15514012,92244.0,92243.0,0.054115]
[1732061151088,0.26002824,92244.0,92243.0,0.054115]
[1732061151398,0.29102824,92244.0,92243.0,0.054115]
[1732061151978,0.15514012,92244.0,92243.0,0.054115]
[1732061156494,0.15514012,92244.0,92236.0,0.0051]
[1732061156692,0.15514012,92237.0,92231.0,0.3608]
[1732061156990,0.47722,92250.0,92231.0,0.3608]
[1732061156991,0.15514012,92233.0,92232.0,0.054121]
[1732061157183,0.15514012,92233.0,92231.0,0.3608]
[1732061157184,0.15514012,92232.0,92231.0,0.054122]
[1732061157387,0.20926112,92232.0,92231.0,0.054122]
[1732061157796,0.15514012,92232.0,92231.0,0.054122]
[1732061159903,0.11028,92233.0,92232.0,0.379401]
[1732061160105,0.0317,92268.0,92229.0,0.10488812]
[1732061160106,0.3608,92261.0,92229.0,0.10488812]
[1732061160399,0.3608,92261.0,92227.0,0.3608]
[1732061160400,0.11028,92244.0,92242.0,0.054115]
[1732061160597,0.11028,92244.0,92242.0,0.085515]
[1732061160899,9.796e-05,92243.0,92242.0,0.085515]
[1732061161194,0.0051,92253.0,92252.0,0.054109]
[1732061161387,0.11028,92253.0,92252.0,0.054109]
[1732061161588,0.26542012,92253.0,92252.0,0.054109]
[1732061162091,0.26550444,92253.0,92252.0,0.054109]
[1732061164301,0.21560444,92253.0,92252.0,0.054109]
[1732061167086,0.26550444,92253.0,92252.0,0.054109]
[1732061167706,0.15522444,92253.0,92252.0,0.054109]
[1732061167899,0.0051,92263.0,92252.0,0.3608]
[1732061167900,0.11028,92257.0,92252.0,0.3608]
[1732061168093,0.01048,92257.0,92256.0,0.15899512]
[1732061169097,8.039e-05,92257.0,92256.0,0.15899512]
[1732061169705,8.039e-05,92257.0,92256.0,0.17676484]
[1732061171001,8.039e-05,92257.0,92256.0,0.07187672]
[1732061171002,0.26550051,92257.0,92256.0,0.07187672]
[1732061171201,0.26550051,92257.0,92256.0,0.054107]
[1732061172293,0.054108,92256.0,92247.0,0.054112]
[1732061172499,0.10488812,92249.0,92247.0,0.054112]
[1732061172805,0.15514012,92248.0,92247.0,0.054112]
[1732061172994,0.15514012,92248.0,92240.0,0.0051]
[1732061173195,0.15514012,92241.0,92239.0,0.054117]
[1732061173504,0.26542012,92240.0,92239.0,0.054117]
[1732061174496,0.26542012,92240.0,92233.0,0.0051]
[1732061174697,0.15514012,92235.0,92234.0,0.05412]
[1732061175520,0.26002824,92235.0,92234.0,0.01739135]
[1732061175704,0.31414824,92235.0,92226.0,0.054124]
[1732061175899,0.15514012,92227.0,92226.0,0.054124]
[1732061176099,0.15514012,92227.0,92226.0,0.0715161]
[1732061176100,0.26542012,92227.0,92226.0,0.0715161]
[1732061176504,0.26542012,92227.0,92226.0,0.054124]
[1732061176710,0.26542012,92227.0,92226.0,0.07125859]
[1732061178415,0.26542012,92227.0,92226.0,0.054124]
[1732061184404,0.15514012,92227.0,92226.0,0.054124]
[1732061184603,0.26526012,92227.0,92226.0,0.054124]
[1732061184811,0.3608,92230.0,92225.0,8.324e-05]
[1732061185021,0.3608,92230.0,92229.0,0.054123]
[1732061185232,0.47092,92230.0,92229.0,0.054123]
[1732061185606,0.00092,92241.0,92229.0,0.3608]
[1732061185807,0.15514012,92240.0,92239.0,0.054117]
[1732061186008,0.11012,92245.0,92244.0,0.054114]
[1732061186219,0.26526012,92245.0,92244.0,0.054114]
[1732061187610,0.3608,92249.0,92248.0,0.054112]
[1732061187815,0.0051,92258.0,92256.0,0.054107]
[1732061188113,0.11012,92260.0,92256.0,0.054107]
[1732061188418,0.51602051,92257.0,92256.0,0.054107]
[1732061191719,0.51602051,92257.0,92249.0,0.054111]
[1732061191912,0.15514012,92249.0,92248.0,0.445372]
[1732061192114,0.15514012,92249.0,92248.0,0.444812]
[1732061193326,0.36088039,92257.0,92251.0,0.05411]
[1732061193618,0.15514012,92245.0,92244.0,0.054114]
[1732061193925,0.15514012,92245.0,92244.0,0.07101496]
[1732061194611,0.15514012,92245.0,92244.0,0.054114]
[1732061195320,0.15514012,92245.0,92244.0,0.07097759]
[1732061195526,0.15514012,92245.0,92244.0,0.054114]
[1732061196325,0.15514012,92245.0,92244.0,0.0710822]
[1732061196724,0.15514012,92245.0,92244.0,0.054114]
[1732061197926,0.15514012,92245.0,92244.0,0.15900212]
[1732061198320,0.36088039,92257.0,92244.0,0.43012812]
[1732061198620,8.039e-05,92257.0,92256.0,0.414907]
[1732061198826,8.039e-05,92257.0,92256.0,0.084707]
[1732061199012,8.039e-05,92257.0,92256.0,0.445507]
[1732061200223,8.039e-05,92257.0,92256.0,0.084707]
[1732061200521,0.15522051,92257.0,92256.0,0.054107]
[1732061207336,0.26534051,92257.0,92256.0,0.054107]
[1732061207531,0.15522051,92257.0,92256.0,0.054107]
[1732061207724,8.039e-05,92257.0,92256.0,0.054107]
[1732061208536,8.039e-05,92257.0,92256.0,0.0779345]
[1732061209121,0.0051,92268.0,92257.0,0.054106]
[1732061209122,0.11012,92267.0,92257.0,0.054106]
[1732061209329,0.11012,92267.0,92266.0,0.15898912]
[1732061209531,0.26526012,92267.0,92266.0,0.054101]
[1732061210339,0.26537027,92267.0,92266.0,0.054101]
[1732061211123,0.26537027,92267.0,92254.0,0.054108]
[1732061211325,0.15514012,92253.0,92252.0,0.445369]
[1732061211620,0.15514012,92253.0,92252.0,0.444809]
[1732061213335,0.15514012,92253.0,92252.0,0.3907]
[1732061213527,0.15514012,92253.0,92252.0,0.444809]
[1732061214228,0.15514012,92253.0,92252.0,0.054109]
[1732061216041,0.15514012,92253.0,92252.0,0.0716149]
[1732061216835,0.26506012,92253.0,92252.0,0.0716149]
[1732061220338,0.26506012,92253.0,92252.0,0.054109]
[1732061232051,0.15514012,92253.0,92252.0,0.054109]
[1732061232235,0.15514012,92253.0,92252.0,0.07134243]
[1732061233849,0.15514012,92253.0,92252.0,0.10224243]
[1732061234437,0.0051,92264.0,92263.0,0.054103]
[1732061234756,0.15514012,92263.0,92258.0,0.10488812]
[1732061234950,0.15514012,92263.0,92262.0,0.054104]
[1732061235145,0.15514012,92263.0,92262.0,0.07156506]
[1732061236060,0.36091015,92267.0,92262.0,0.07156506]
[1732061236347,0.36091015,92267.0,92266.0,0.15898912]
[1732061236549,0.36091015,92267.0,92266.0,0.17644057]
[1732061237137,0.00011015,92267.0,92266.0,0.17644057]
[1732061238338,0.00011015,92267.0,92266.0,0.19994949]
[1732061239651,0.00011015,92267.0,92266.0,0.09506137]
[1732061240748,0.005,92276.0,92275.0,0.054096]
[1732061240943,0.11154617,92281.0,92280.0,0.054093]
[1732061241149,0.11154617,92281.0,92280.0,0.07156548]
[1732061241455,0.11154617,92281.0,92280.0,0.054093]
[1732061241752,0.11165856,92281.0,92280.0,0.054093]
[1732061243852,0.00173856,92281.0,92280.0,0.054093]
[1732061245550,0.00173856,92281.0,92280.0,0.07730305]
[1732061248554,0.00011239,92281.0,92280.0,0.40238305]
[1732061248754,0.005,92289.0,92288.0,0.054088]
[1732061248958,0.10964,92297.0,92296.0,0.054084]
[1732061249462,0.26478012,92297.0,92296.0,0.414884]
[1732061249653,0.26489139,92297.0,92296.0,0.414884]
[1732061252862,0.15525139,92297.0,92296.0,0.414884]
[1732061256869,0.00011127,92297.0,92296.0,0.43228994]
[1732061257759,0.00011127,92297.0,92296.0,0.414884]
[1732061257955,0.00011127,92297.0,92296.0,0.446784]
[1732061258153,0.00011127,92297.0,92296.0,0.46422113]
[1732061258579,0.00011127,92297.0,92296.0,0.414884]
[1732061260463,0.00011127,92297.0,92296.0,0.43224243]
[1732061260776,0.00011127,92297.0,92296.0,0.414884]
[1732061261075,0.15525139,92297.0,92296.0,0.414884]
[1732061262075,0.15525139,92297.0,92296.0,0.054084]
[1732061262571,0.26489139,92297.0,92296.0,0.054084]
[1732061262965,0.15525139,92297.0,92296.0,0.054084]
[1732061263670,0.00011127,92297.0,92296.0,0.75717045]
[1732061264065,0.00011127,92297.0,92296.0,0.739924]
[1732061265271,0.00011127,92297.0,92296.0,0.414884]
[1732061266073,0.00011127,92297.0,92296.0,0.43803217]
[1732061266460,0.15525139,92297.0,92296.0,0.054084]
[1732061275699,0.15525139,92297.0,92296.0,0.07100437]
[1732061277168,0.15525139,92297.0,92296.0,0.054084]
[1732061278680,0.054085,92293.0,92292.0,0.00013489]
[1732061278882,0.57002512,92293.0,92292.0,0.05422089]
[1732061279685,0.51594012,92293.0,92292.0,0.05422089]
[1732061280477,0.00011127,92297.0,92292.0,0.41502089]
[1732061280774,0.00011127,92297.0,92296.0,0.15897212]
[1732061280974,0.10928,92302.0,92296.0,0.50088621]
[1732061281281,0.10928,92302.0,92301.0,0.054081]
[1732061281473,0.10928,92302.0,92301.0,0.07095509]
[1732061281784,0.10928,92302.0,92301.0,0.43175509]
[1732061281988,0.10937427,92302.0,92301.0,0.43175509]
[1732061286090,0.10937427,92302.0,92301.0,0.414881]
[1732061286781,9.427e-05,92302.0,92301.0,0.414881]
[1732061287479,9.427e-05,92302.0,92301.0,0.756856]
[1732061287680,0.3608,92311.0,92310.0,0.054075]
[1732061287885,0.3608,92311.0,92310.0,0.15896312]
[1732061288689,0.00011291,92311.0,92310.0,0.51976312]
[1732061289278,0.00011291,92311.0,92310.0,0.53680069]
[1732061289477,0.00011291,92311.0,92310.0,0.51976312]
[1732061289680,0.15525303,92311.0,92310.0,0.15896312]
[1732061289878,0.15525303,92311.0,92310.0,0.054075]
[1732061290484,0.15525303,92311.0,92299.0,0.3608]
[1732061290485,0.15525303,92311.0,92304.0,0.054079]
[1732061290690,0.031,92310.0,92305.0,0.01694826]
[1732061290890,0.031,92310.0,92306.0,0.01694826]
[1732061290891,0.054077,92308.0,92306.0,0.01694826]
[1732061291089,0.031,92310.0,92296.0,0.10488812]
[1732061291090,0.15514012,92301.0,92296.0,0.10488812]
[1732061291280,0.15514012,92297.0,92296.0,0.054083]
[1732061291477,0.15514012,92297.0,92296.0,0.15897112]
[1732061291681,0.15514012,92297.0,92296.0,0.17603894]
[1732061291882,0.13938,92300.0,92296.0,0.12195594]
[1732061292190,0.15514012,92298.0,92297.0,0.07115082]
[1732061292893,0.10928,92300.0,92297.0,0.054083]
[1732061293078,0.031,92310.0,92299.0,0.3608]
[1732061293280,0.00011291,92311.0,92309.0,0.054076]
[1732061293480,0.00011291,92311.0,92310.0,0.01716732]
[1732061293689,0.00011291,92311.0,92309.0,0.415476]
[1732061293886,0.00011291,92311.0,92309.0,0.414876]
[1732061297887,0.00011291,92311.0,92310.0,0.01716297]
[1732061299499,0.00011291,92311.0,92310.0,0.07123797]
[1732061301789,0.00011291,92311.0,92310.0,0.054075]
[1732061301998,0.00011291,92311.0,92310.0,0.07126402]
[1732061303701,0.005,92323.0,92315.0,0.054073]
[1732061303892,0.005,92329.0,92325.0,0.054067]
[1732061304084,0.14218,92331.0,92330.0,0.054064]
[1732061304290,0.005,92341.0,92330.0,0.054064]
[1732061304291,0.005,92341.0,92330.0,0.10488812]
[1732061304502,0.00528,92347.0,92346.0,0.054054]
[1732061304692,0.00035983,92347.0,92346.0,0.054054]
[1732061305100,0.10923983,92347.0,92346.0,0.054054]
[1732061305801,0.10923983,92347.0,92335.0,0.054066]
[1732061305802,0.054063,92341.0,92335.0,0.054066]
[1732061306001,0.3608,92336.0,92335.0,0.054066]
[1732061306192,0.46968,92336.0,92323.0,0.0051]
[1732061306389,0.3608,92336.0,92335.0,0.10488812]
[1732061306592,0.3608,92336.0,92335.0,0.15895412]
[1732061307093,0.3608,92336.0,92335.0,0.054066]
[1732061312606,0.46968,92336.0,92335.0,0.054066]
[1732061313703,0.46968,92336.0,92319.0,0.0051]
[1732061313903,0.3608,92326.0,92325.0,0.054072]
[1732061315407,0.46968,92326.0,92325.0,0.054072]
[1732061318602,0.3608,92326.0,92325.0,0.054072]
[1732061318811,0.46968,92326.0,92325.0,0.054072]
[1732061320908,0.47022263,92326.0,92325.0,0.054072]
[1732061327109,0.10942263,92326.0,92325.0,0.054072]
[1732061329022,0.10942263,92326.0,92325.0,0.07118876]
[1732061329508,0.10942263,92326.0,92325.0,0.054072]
[1732061332609,0.3608,92337.0,92327.0,0.054071]
[1732061332918,0.3608,92337.0,92325.0,0.46568812]
[1732061332919,0.10856,92346.0,92336.0,0.054066]
[1732061333112,0.00162491,92345.0,92344.0,0.054061]
[1732061333315,0.00162491,92345.0,92344.0,0.07127059]
[1732061333712,0.11018491,92345.0,92344.0,0.07127059]
[1732061336114,0.11018491,92345.0,92344.0,0.054061]
[1732061338216,0.10856,92345.0,92344.0,0.054061]
[1732061345530,0.00092,92346.0,92345.0,0.05406]
[1732061345740,0.00064,92346.0,92345.0,0.11546]
[1732061345922,0.3659,92361.0,92346.0,0.05406]
[1732061346826,0.10852,92360.0,92346.0,0.05406]
[1732061347726,0.47442,92361.0,92346.0,0.05406]
[1732061348332,0.3608,92353.0,92346.0,0.05406]
[1732061349233,0.3608,92353.0,92346.0,0.07796175]
[1732061350029,0.3608,92353.0,92346.0,0.05406]
[1732061350640,0.10887983,92347.0,92346.0,0.05406]
[1732061350825,0.10887983,92347.0,92345.0,0.02707]
[1732061351331,0.10887983,92347.0,92345.0,0.08113]
[1732061351530,0.10887983,92347.0,92345.0,0.02707]
[1732061351733,0.05406,92346.0,92345.0,0.02707]
[1732061352038,0.05406,92346.0,92343.0,0.00866]
[1732061352039,0.054061,92344.0,92343.0,0.00866]
[1732061352344,0.414861,92344.0,92343.0,0.00866]
[1732061352541,0.739741,92344.0,92343.0,0.00866]
[1732061353145,0.739741,92344.0,92343.0,0.062722]
[1732061353343,0.414861,92344.0,92343.0,0.062722]
[1732061353636,0.68568,92344.0,92343.0,0.062722]
[1732061353840,0.3608,92344.0,92343.0,0.062722]
[1732061354240,0.739741,92344.0,92343.0,0.062722]
[1732061355129,0.10859983,92347.0,92346.0,0.05406]
[1732061355130,7.983e-05,92347.0,92346.0,0.05406]
[1732061355843,0.10859983,92347.0,92346.0,0.05406]
[1732061356247,7.983e-05,92347.0,92346.0,0.05406]
[1732061356437,7.983e-05,92347.0,92346.0,0.31164255]
[1732061358342,7.983e-05,92347.0,92346.0,0.05406]
[1732061358641,0.19052683,92355.0,92354.0,0.054055]
[1732061358851,1.154028,92400.0,92367.0,0.054048]
[1732061358852,0.0051,92368.0,92367.0,0.054048]
[1732061359031,0.0051,92386.0,92382.0,0.054039]
[1732061359238,0.10852,92388.0,92382.0,0.054039]
[1732061359634,0.0004071,92383.0,92382.0,0.054039]
[1732061360441,0.0004071,92383.0,92381.0,0.00232]
[1732061361741,0.0238232,92383.0,92381.0,0.00232]
[1732061362044,0.0238232,92383.0,92381.0,0.056359]
[1732061362045,0.0004071,92383.0,92381.0,0.056359]
[1732061362651,0.1082,92382.0,92381.0,0.056359]
[1732061363844,0.1389,92382.0,92381.0,0.056359]
[1732061367645,0.0307,92382.0,92381.0,0.056359]
[1732061367851,0.0004071,92383.0,92381.0,0.056359]
[1732061373853,0.15933322,92383.0,92381.0,0.056359]
[1732061374056,0.054039,92382.0,92381.0,0.056359]
[1732061374242,0.054039,92382.0,92381.0,0.00232]
[1732061374553,0.054042,92377.0,92376.0,0.054042]
[1732061374757,0.414842,92377.0,92376.0,0.054042]
[1732061375344,0.414842,92377.0,92364.0,0.00012331]
[1732061375345,0.054045,92371.0,92370.0,0.054046]
[1732061375548,0.054045,92371.0,92364.0,0.00012331]
[1732061375549,0.21308812,92371.0,92364.0,0.00012331]
[1732061375754,0.3608,92366.0,92365.0,0.054049]
[1732061377354,0.0307,92370.0,92369.0,0.054046]
[1732061377658,0.1082,92371.0,92370.0,0.054046]
[1732061382064,0.36148,92380.0,92379.0,0.054041]
[1732061382260,0.3608,92380.0,92379.0,0.054041]
[1732061382465,0.0001271,92383.0,92382.0,0.054039]
[1732061383553,0.1083271,92383.0,92382.0,0.054039]
[1732061384564,0.4691271,92383.0,92382.0,0.054039]
[1732061386263,0.0001271,92383.0,92382.0,0.054039]
[1732061387864,0.0051,92398.0,92382.0,0.054039]
[1732061387865,0.0051,92398.0,92396.0,0.054031]
[1732061388064,1.10064,92400.0,92396.0,0.51971912]
[1732061388767,0.00399195,92397.0,92396.0,0.414831]
[1732061389468,0.00399195,92397.0,92396.0,0.423481]
[1732061390471,0.00399195,92397.0,92396.0,0.52836912]
[1732061390653,0.00399195,92397.0,92396.0,0.72113353]
[1732061390857,0.00399195,92397.0,92396.0,0.52836912]
[1732061391572,1.10064,92400.0,92396.0,0.52836912]
[1732061391870,1.1,92400.0,92399.0,0.054029]
[1732061392673,1.10014,92400.0,92399.0,0.054029]
[1732061394360,1.012921,92400.0,92399.0,0.054029]
[1732061394560,1.012921,92400.0,92399.0,1.17429712]
[1732061394561,0.3813365,92400.0,92399.0,1.17429712]
[1732061394766,0.3313365,92400.0,92399.0,1.19108101]
[1732061394964,0.2158005,92400.0,92399.0,1.47106928]
[1732061395161,0.1564665,92400.0,92399.0,1.09221602]
[1732061395568,0.1564665,92400.0,92399.0,0.89710414]
[1732061395766,0.1564665,92400.0,92399.0,0.79221602]
[1732061395967,0.1564665,92400.0,92399.0,0.89710414]
[1732061396164,0.1564665,92400.0,92399.0,0.79221602]
[1732061396361,0.1564665,92400.0,92399.0,0.89710414]
[1732061396563,0.1564665,92400.0,92399.0,1.19710414]
[1732061396767,0.1564665,92400.0,92399.0,0.89710414]
[1732061396976,0.1564665,92400.0,92399.0,1.19710414]
[1732061397274,0.1564665,92400.0,92399.0,1.09221602]
[1732061397459,0.1564665,92400.0,92399.0,1.19710414]
[1732061397666,0.0969915,92400.0,92399.0,1.19710414]
[1732061397867,0.0969915,92400.0,92399.0,0.89710414]
[1732061398063,0.0969915,92400.0,92399.0,0.91872061]
[1732061398262,0.005,92424.0,92423.0,0.054015]
[1732061398466,0.00162388,92428.0,92427.0,0.054012]
[1732061399176,0.00173874,92428.0,92427.0,0.054012]
[1732061399660,0.10969874,92428.0,92427.0,0.054012]
[1732061399865,0.00173874,92428.0,92427.0,0.054012]
[1732061401665,0.00011486,92428.0,92427.0,0.054012]
[1732061405178,0.00011486,92428.0,92427.0,0.004112]
[1732061405382,0.00011486,92428.0,92417.0,0.02342496]
[1732061405565,0.00011486,92428.0,92426.0,0.054013]
[1732061406069,0.00011486,92428.0,92427.0,0.054012]
[1732061408470,0.00011486,92428.0,92427.0,0.062662]
[1732061409388,0.00011486,92428.0,92427.0,0.06275574]
[1732061409762,0.00011486,92428.0,92427.0,0.19146991]
[1732061409763,8.6e-07,92428.0,92427.0,0.19146991]
[1732061409970,8.6e-07,92428.0,92427.0,0.08658179]
[1732061410673,8.6e-07,92428.0,92427.0,0.10346636]
[1732061410868,8.6e-07,92428.0,92427.0,0.08658179]
[1732061411672,8.6e-07,92428.0,92427.0,0.19146991]
[1732061411971,8.6e-07,92428.0,92427.0,0.06275574]
[1732061412778,0.10792086,92428.0,92427.0,0.00874374]
[1732061412983,8.6e-07,92428.0,92427.0,0.06275574]
[1732061413485,0.00048024,92428.0,92427.0,0.06275574]
[1732061415080,0.00048024,92428.0,92417.0,0.3907]
[1732061415081,0.00048024,92428.0,92423.0,0.054015]
[1732061415283,0.054015,92424.0,92419.0,0.054017]
[1732061415482,0.054015,92424.0,92417.0,0.3907]
[1732061415783,0.3608,92418.0,92417.0,0.3907]
[1732061416085,0.3608,92418.0,92408.0,0.00162302]
[1732061416280,0.054019,92416.0,92412.0,0.054021]
[1732061416680,0.41514849,92417.0,92412.0,0.054021]
[1732061416879,0.054019,92416.0,92408.0,0.00162302]
[1732061417082,0.054022,92411.0,92409.0,0.054023]
[1732061417290,0.36144,92417.0,92401.0,0.005]
[1732061417482,0.3608,92425.0,92422.0,0.054015]
[1732061417678,0.054016,92421.0,92416.0,0.054019]
[1732061417979,0.3608,92425.0,92416.0,0.054019]
[1732061417980,0.3608,92417.0,92416.0,0.054019]
[1732061418183,0.46872,92417.0,92416.0,0.054019]
[1732061418370,0.50032,92417.0,92416.0,0.054019]
[1732061419180,0.50032,92417.0,92415.0,0.00865]
[1732061419388,0.0321,92416.0,92415.0,0.00865]
[1732061419784,0.0321,92416.0,92407.0,0.005]
[1732061420088,0.0321,92416.0,92406.0,0.054025]
[1732061420089,0.3608,92408.0,92406.0,0.054025]
[1732061421684,0.3608,92408.0,92406.0,0.062675]
[1732061422075,0.1078,92407.0,92406.0,0.062675]
[1732061423086,0.00068,92417.0,92406.0,0.062675]
[1732061423285,0.0016236,92427.0,92426.0,0.054013]
[1732061424889,0.10828024,92428.0,92426.0,0.054013]
[1732061425475,0.00048024,92428.0,92426.0,0.054013]
[1732061425782,0.00048024,92428.0,92427.0,0.10488812]
[1732061425985,0.00048024,92428.0,92426.0,0.054013]
[1732061426886,0.00048024,92428.0,92427.0,0.46568812]
[1732061427185,0.00048024,92428.0,92427.0,0.49618812]
[1732061427376,0.00048024,92428.0,92427.0,0.52858812]
[1732061428181,0.00048024,92428.0,92427.0,0.55238451]
[1732061428381,0.00048024,92428.0,92427.0,0.87694451]
[1732061428573,0.3608,92444.0,92443.0,0.054003]
[1732061428778,0.3658,92452.0,92451.0,0.053998]
[1732061428779,0.3608,92452.0,92451.0,0.053998]
[1732061429679,0.3608826,92452.0,92451.0,0.053998]
[1732061430685,8.26e-05,92452.0,92451.0,0.053998]
[1732061430991,0.3608826,92452.0,92451.0,0.053998]
[1732061431492,0.4686826,92452.0,92451.0,0.053998]
[1732061431894,0.1078826,92452.0,92451.0,0.053998]
[1732061434199,8.26e-05,92452.0,92451.0,0.48336612]
[1732061434409,0.005,92477.0,92469.0,0.053988]
[1732061434701,0.1078,92471.0,92469.0,0.053988]
[1732061435393,0.00171237,92470.0,92469.0,0.053988]
[1732061438610,0.00171237,92470.0,92469.0,0.15887612]
[1732061439893,0.00171237,92470.0,92469.0,0.053988]
[1732061441798,0.05569937,92470.0,92468.0,0.00865]
[1732061441994,0.0327,92469.0,92468.0,0.00865]
[1732061442597,0.0632,92469.0,92468.0,0.00865]
[1732061442799,0.053994,92459.0,92458.0,0.00509461]
[1732061443009,0.883354,92459.0,92458.0,9.461e-05]
[1732061443511,0.775594,92459.0,92458.0,9.461e-05]
[1732061443701,0.775594,92459.0,92458.0,0.05408861]
[1732061443702,0.3608,92459.0,92458.0,0.05408861]
[1732061444094,0.46856,92459.0,92458.0,0.05408861]
[1732061448595,0.3608,92459.0,92458.0,0.05408861]
[1732061449508,0.00171237,92470.0,92467.0,0.053989]
[1732061449509,0.10776,92468.0,92467.0,0.053989]
[1732061451008,0.46856,92468.0,92467.0,0.053989]
[1732061452112,0.053991,92464.0,92463.0,0.053991]
[1732061452298,0.053994,92460.0,92458.0,9.461e-05]
[1732061453904,0.053998,92451.0,92450.0,0.0016224]
[1732061454107,0.523918,92451.0,92450.0,0.0016224]
[1732061455407,0.523918,92451.0,92439.0,0.059005]
[1732061455602,0.523918,92451.0,92434.0,0.005]
[1732061455603,0.054008,92436.0,92434.0,0.005]
[1732061455814,0.3608,92440.0,92424.0,0.005]
[1732061455815,0.00013193,92435.0,92424.0,0.005]
[1732061456112,0.414812,92427.0,92426.0,0.054013]
[1732061456316,0.414812,92427.0,92426.0,0.19182633]
[1732061456516,0.414812,92427.0,92425.0,0.19182633]
[1732061456699,0.414812,92427.0,92415.0,0.005]
[1732061456700,0.3608,92427.0,92421.0,0.19182633]
[1732061456906,0.054017,92419.0,92416.0,0.19182633]
[1732061457110,0.054017,92419.0,92415.0,0.19182633]
[1732061457111,0.414817,92419.0,92415.0,0.19182633]
[1732061457406,0.414817,92419.0,92414.0,0.05402]
[1732061458303,0.414817,92419.0,92417.0,0.054018]
[1732061458304,0.4758,92419.0,92417.0,0.054018]
[1732061458520,0.47584,92419.0,92417.0,0.054018]
[1732061459506,0.4994184,92419.0,92417.0,0.054018]
[1732061461819,0.4994184,92419.0,92408.0,0.054023]
[1732061462118,0.4994184,92419.0,92409.0,0.054023]
[1732061462318,0.4994184,92419.0,92407.0,0.005]